Department family,Entity,Date of payment,Expense type,Expense area,Supplier,Transaction number,Amount in Sterling
Department for Culture Media and Sport,Department for Culture Media and Sport,01/07/2010,Grant to BBC:Home Broadcasting,Home Broadcasting:Grant to BBC,British Broadcasting Corporation,30018347,"34,993,000.00"
Department for Culture Media and Sport,Department for Culture Media and Sport,01/07/2010,Publicity,Communications,Red Stone Design Ltd,30018470,500
Department for Culture Media and Sport,Department for Culture Media and Sport,01/07/2010,Payroll (Logica),Human Resources Team,Logica CMG Enterprise Services,30018474,"3,358.54"
Department for Culture Media and Sport,Department for Culture Media and Sport,01/07/2010,Grant-in-Aid (DCMS NDPBs),GIA Architecture+Heritage,English Heritage,30018480,"9,000,000.00"
Department for Culture Media and Sport,Department for Culture Media and Sport,01/07/2010,Grant-in-Aid (DCMS NDPBs),GIA Museums & Galleries,National Portrait Gallery,30018481,"625,000.00"
Department for Culture Media and Sport,Department for Culture Media and Sport,01/07/2010,Grant-in-Aid (DCMS NDPBs),GIA Libraries bodies,Public Lending Right,30018482,"55,210.00"
Department for Culture Media and Sport,Department for Culture Media and Sport,01/07/2010,Current Grants Private Sector,GIA Museums & Galleries,Tyne and Wear Museums,30018483,"119,600.00"
Department for Culture Media and Sport,Department for Culture Media and Sport,01/07/2010,Grant-in-Aid (DCMS NDPBs),GIA Museums & Galleries,Geffrye Museum ,30018484,"159,000.00"
Department for Culture Media and Sport,Department for Culture Media and Sport,01/07/2010,Grant-in-Aid (DCMS NDPBs),GIA Sports bodies,Football Licencing Authority,30018487,"100,860.00"
Department for Culture Media and Sport,Department for Culture Media and Sport,01/07/2010,Grant-in-Aid (DCMS NDPBs),GIA Film Council,Film Council,30018488,"10,706,436.00"
Department for Culture Media and Sport,Department for Culture Media and Sport,01/07/2010,Grant-in-Aid (DCMS NDPBs),GIA Arts bodies,Arts Council of England,30018497,"68,308,038.00"
Department for Culture Media and Sport,Department for Culture Media and Sport,01/07/2010,Grant-in-Aid (DCMS NDPBs),GIA S4C Welsh Fourth Channel,Welsh Fourth Channel Authority,30018499,"9,115,000.00"
Department for Culture Media and Sport,Department for Culture Media and Sport,01/07/2010,Grant-in-Aid (DCMS NDPBs),GIA Sports bodies,Sport England,30018500,"8,000,000.00"
Department for Culture Media and Sport,Department for Culture Media and Sport,01/07/2010,Grant-in-Aid (DCMS NDPBs),GIA Libraries bodies,British Library ,30018501,"5,108,000.00"
Department for Culture Media and Sport,Department for Culture Media and Sport,01/07/2010,Grant-in-Aid (DCMS NDPBs),GIA Museums & Galleries,British Museum,30018502,"5,038,646.00"
Department for Culture Media and Sport,Department for Culture Media and Sport,01/07/2010,Grant-in-Aid (DCMS NDPBs),GIA Museums & Galleries,National Maritime Museum,30018503,"1,632,500.00"
Department for Culture Media and Sport,Department for Culture Media and Sport,01/07/2010,Grant-in-Aid (DCMS NDPBs),GIA Museums & Galleries,Imperial War Museum,30018505,"2,260,733.00"
Department for Culture Media and Sport,Department for Culture Media and Sport,01/07/2010,Grant-in-Aid (DCMS NDPBs),GIA Museums & Galleries,The Royal Armouries,30018506,"661,000.00"
Department for Culture Media and Sport,Department for Culture Media and Sport,01/07/2010,Grant-in-Aid (DCMS NDPBs),GIA Museums & Galleries,Wallace Collection,30018507,"363,583.00"
Department for Culture Media and Sport,Department for Culture Media and Sport,01/07/2010,Grant-in-Aid (DCMS NDPBs),GIA Museums & Galleries,National Gallery,30018508,"1,868,298.00"
Department for Culture Media and Sport,Department for Culture Media and Sport,01/07/2010,Grant-in-Aid (DCMS NDPBs),GIA Museums & Galleries,Horniman Museum,30018509,"351,400.00"
Department for Culture Media and Sport,Department for Culture Media and Sport,01/07/2010,Grant-in-Aid (DCMS NDPBs),GIA Mus Libs Archives x-sector,Museums Libraries and Archives Council,30018521,"900,000.00"
Department for Culture Media and Sport,Department for Culture Media and Sport,01/07/2010,Grant-in-Aid (DCMS NDPBs),GIA Mus Libs Archives x-sector,Museums Libraries and Archives Council,30018522,"90,000.00"
Department for Culture Media and Sport,Department for Culture Media and Sport,01/07/2010,Grant-in-Aid (DCMS NDPBs),GIA Mus Libs Archives x-sector,Museums Libraries and Archives Council,30018523,"900,000.00"
Department for Culture Media and Sport,Department for Culture Media and Sport,01/07/2010,Prog Event+Conference OrgCosts,City of Culture-bid evaluation,Arena and Convention Centre,30018524,"1,175.00"
Department for Culture Media and Sport,Department for Culture Media and Sport,01/07/2010,Rail travel tickets,Procurement,Hogg Robinson ( Travel ) Limited,30018526,"2,233.10"
Department for Culture Media and Sport,Department for Culture Media and Sport,01/07/2010,Publicity,Communications,EMS Events Limited,30018527,596.6
Department for Culture Media and Sport,Department for Culture Media and Sport,01/07/2010,Publicity,Communications,CAKE Consultancy Ltd,30018528,600
Department for Culture Media and Sport,Department for Culture Media and Sport,01/07/2010,Other Courier Services,Estates & Property Services,Ecovert FM Ltd,30018529,"10,200.73"
Department for Culture Media and Sport,Department for Culture Media and Sport,01/07/2010,Conservation - Picture Frames,Govt Art Collection programme,Alexander G Ley & Son,30018530,560
Department for Culture Media and Sport,Department for Culture Media and Sport,01/07/2010,Temp staff Interim managers,Government Olympic Executive,Russam GMS LTD,30018531,"10,134.38"
Department for Culture Media and Sport,Department for Culture Media and Sport,01/07/2010,Temp staff Interim managers,Government Olympic Executive,Russam GMS LTD,30018532,"10,134.38"
Department for Culture Media and Sport,Department for Culture Media and Sport,01/07/2010,Temp staff Interim managers,Government Olympic Executive,Russam GMS LTD,30018533,"10,134.38"
Department for Culture Media and Sport,Department for Culture Media and Sport,01/07/2010,Temp staff Interim managers,Government Olympic Executive,Russam GMS LTD,30018534,"5,067.19"
Department for Culture Media and Sport,Department for Culture Media and Sport,01/07/2010,Ceremonials Storage Costs,State Ceremonials Prog Costs,Piggotts Co Ltd,30018538,775
Department for Culture Media and Sport,Department for Culture Media and Sport,01/07/2010,Flag Flying,State Ceremonials Prog Costs,The flag Consultancy Ltd,30018539,"3,230.00"
Department for Culture Media and Sport,Department for Culture Media and Sport,01/07/2010,Temp staff filling vacancy,Government Olympic Executive,Brook Street ( UK ) Ltd,30018540,728.62
Department for Culture Media and Sport,Department for Culture Media and Sport,01/07/2010,Grant-in-Aid (DCMS NDPBs),GIA Museums & Galleries,National Museum of Science & Industry,30018544,"3,386,000.00"
Department for Culture Media and Sport,Department for Culture Media and Sport,01/07/2010,Grant-in-Aid (DCMS NDPBs),GIA Architecture+Heritage,The Royal Household,30018545,"1,476,700.00"
Department for Culture Media and Sport,Department for Culture Media and Sport,01/07/2010,Grant-in-Aid (DCMS NDPBs),GIA Sports bodies,United Kingdom Sports Council,30018546,"6,105,000.00"
Department for Culture Media and Sport,Department for Culture Media and Sport,01/07/2010,Grant-in-Aid (DCMS NDPBs),GIA Museums & Galleries,National Museums & Galleries Merseyside,30018547,"1,808,006.00"
Department for Culture Media and Sport,Department for Culture Media and Sport,01/07/2010,Grant-in-Aid (DCMS NDPBs),GIA Museums & Galleries,Natural History Museum,30018548,"4,007,000.00"
Department for Culture Media and Sport,Department for Culture Media and Sport,01/07/2010,Grant-in-Aid (DCMS NDPBs),GIA Museums & Galleries,Victoria & Albert Museum,30018549,"2,356,928.00"
Department for Culture Media and Sport,Department for Culture Media and Sport,01/07/2010,Grant-in-Aid (DCMS NDPBs),GIA Museums & Galleries,Sir John Soane's Museum,30018550,"96,433.00"
Department for Culture Media and Sport,Department for Culture Media and Sport,01/07/2010,Grant-in-Aid (DCMS NDPBs),GIA Tourism bodies,Visit Britain,30018551,"2,140,000.00"
Department for Culture Media and Sport,Department for Culture Media and Sport,01/07/2010,Current Grants Private Sector,GIA Museums & Galleries,National Museum of Science & Industry,30018552,"230,422.00"
Department for Culture Media and Sport,Department for Culture Media and Sport,01/07/2010,Grant-in-Aid (DCMS NDPBs),GIA Museums & Galleries,Museum of Science & Ind in Manchester,30018553,"333,973.00"
Department for Culture Media and Sport,Department for Culture Media and Sport,02/07/2010,Grant-in-Aid (Current),OFCOM,Community Media Association,30018541,"20,000.00"
Department for Culture Media and Sport,Department for Culture Media and Sport,02/07/2010,Finance & Accounting Services,Finance & Planning,Liberata UK Ltd,30018542,"19,687.57"
Department for Culture Media and Sport,Department for Culture Media and Sport,02/07/2010,Finance & Accounting Services,Finance & Planning,Liberata UK Ltd,30018543,"21,651.36"
Department for Culture Media and Sport,Department for Culture Media and Sport,02/07/2010,Temp staff filling vacancy,Minister Sport,Brook Street ( UK ) Ltd,30018556,896.76
Department for Culture Media and Sport,Department for Culture Media and Sport,02/07/2010,Conservation - Oil Paintings,Govt Art Collection programme,Andrea Gall,30018558,"4,180.00"
Department for Culture Media and Sport,Department for Culture Media and Sport,02/07/2010,Temp staff filling vacancy,Govt Art Collection admin cost,Brook Street ( UK ) Ltd,30018559,753.79
Department for Culture Media and Sport,Department for Culture Media and Sport,02/07/2010,GAC Workshop supplies,Govt Art Collection programme,Ocean Design Storage Solutions Ltd,30018560,"1,021.07"
Department for Culture Media and Sport,Department for Culture Media and Sport,02/07/2010,Management Consultants,DCMS Change Team,COI Communication,30018564,"5,922.00"
Department for Culture Media and Sport,Department for Culture Media and Sport,02/07/2010,Temp staff filling vacancy,Director Programmes,Brook Street ( UK ) Ltd,30018572,728.62
Department for Culture Media and Sport,Department for Culture Media and Sport,05/07/2010,Temp staff Interim managers,Human Resources Team,Morgan Law Recruitment Consultancy Ltd,30018393,"2,643.75"
Department for Culture Media and Sport,Department for Culture Media and Sport,05/07/2010,IT Capital Additions,Human Resources Team,Skillsearch Ltd,30018396,"1,880.00"
Department for Culture Media and Sport,Department for Culture Media and Sport,05/07/2010,IT Capital Additions,Information Services,Atos Origin IT Services UK Ltd,30018425,"14,476.00"
Department for Culture Media and Sport,Department for Culture Media and Sport,05/07/2010,Grant-in-Aid (DCMS NDPBs),GIA Olympic Delivery Authority,Olympic Delivery Authority,30018445,"105,300,000.00"
Department for Culture Media and Sport,Department for Culture Media and Sport,05/07/2010,Grant-in-Aid (DCMS NDPBs),GIA Gambling + Lottery bodies,GIA-National Lottery Commission,30018446,"1,111,094.00"
Department for Culture Media and Sport,Department for Culture Media and Sport,05/07/2010,Management Consultants,Information Services,Quo Imus Ltd,30018458,"2,629.06"
Department for Culture Media and Sport,Department for Culture Media and Sport,05/07/2010,Temp staff Interim managers,Human Resources Team,Morgan Law Recruitment Consultancy Ltd,30018463,"2,643.75"
Department for Culture Media and Sport,Department for Culture Media and Sport,05/07/2010,IT Maintenance,Information Services,Atos Origin IT Services UK Ltd,30018472,"94,155.10"
Department for Culture Media and Sport,Department for Culture Media and Sport,05/07/2010,Grant-in-Aid (DCMS NDPBs),GIA Museums & Galleries,GIA-Tate Gallery,30018504,"5,011,052.00"
Department for Culture Media and Sport,Department for Culture Media and Sport,05/07/2010,Health & Safety,Estates & Property Services,SGS United Kingdom Ltd,30018562,"1,899.61"
Department for Culture Media and Sport,Department for Culture Media and Sport,05/07/2010,Temp staff filling vacancy,Government Olympic Executive,Brook Street ( UK ) Ltd,30018565,653.89
Department for Culture Media and Sport,Department for Culture Media and Sport,05/07/2010,Temp staff filling vacancy,Government Olympic Executive,Brook Street ( UK ) Ltd,30018566,731.26
Department for Culture Media and Sport,Department for Culture Media and Sport,05/07/2010,Temp staff filling vacancy,Government Olympic Executive,Brook Street ( UK ) Ltd,30018567,737.96
Department for Culture Media and Sport,Department for Culture Media and Sport,05/07/2010,Temp staff filling vacancy,Government Olympic Executive,Brook Street ( UK ) Ltd,30018568,649.21
Department for Culture Media and Sport,Department for Culture Media and Sport,05/07/2010,Conference&Seminar Attend Fees,Government Olympic Executive,Dod's Parliamentary Communications Ltd,30018569,"2,244.25"
Department for Culture Media and Sport,Department for Culture Media and Sport,05/07/2010,Conference Management Costs,Government Olympic Executive,The Hub Kings Cross,30018573,595
Department for Culture Media and Sport,Department for Culture Media and Sport,05/07/2010,Temp staff filling vacancy,Evidence&Analysis admin projs,TFPL Ltd,30018576,544.86
Department for Culture Media and Sport,Department for Culture Media and Sport,05/07/2010,Other Consultancy,Dir Culture team + projects,Matassa Freda,30018580,663
Department for Culture Media and Sport,Department for Culture Media and Sport,05/07/2010,Learning & Development,Central Learning & Development,Eliesha Training Ltd,30018582,"11,850.00"
Department for Culture Media and Sport,Department for Culture Media and Sport,05/07/2010,Learning & Development,Central Learning & Development,Teleios Consulting South East Ltd,30018583,527.1
Department for Culture Media and Sport,Department for Culture Media and Sport,05/07/2010,Learning & Development,Central Learning & Development,National School of Government,30018584,"1,620.00"
Department for Culture Media and Sport,Department for Culture Media and Sport,05/07/2010,Temp staff filling vacancy,Finance & Planning,Allen Lane Public Sector Recruitment,30018586,"2,085.04"
Department for Culture Media and Sport,Department for Culture Media and Sport,05/07/2010,IT Capital Additions,Human Resources Team,Skillsearch Ltd,30018587,"4,700.00"
Department for Culture Media and Sport,Department for Culture Media and Sport,05/07/2010,Current Grants to LAs,Free Swimming Programme,South Staffordshire DC,30018591,"7,014.28"
Department for Culture Media and Sport,Department for Culture Media and Sport,06/07/2010,Air travel tickets,Procurement,Capita Business Travel Ltd,30018596,"6,005.66"
Department for Culture Media and Sport,Department for Culture Media and Sport,06/07/2010,Other Consultancy,Government Olympic Executive,John Evans,30018598,"2,000.00"
Department for Culture Media and Sport,Department for Culture Media and Sport,06/07/2010,Publicity,Communications,Eclectic Media UK Ltd,30018602,"1,500.00"
Department for Culture Media and Sport,Department for Culture Media and Sport,06/07/2010,Temp staff filling vacancy,Government Olympic Executive,Adecco UK Ltd,30018604,"3,440.54"
Department for Culture Media and Sport,Department for Culture Media and Sport,06/07/2010,Temp staff Interim managers,Government Olympic Executive,Alpine Consortium,30018605,"18,367.14"
Department for Culture Media and Sport,Department for Culture Media and Sport,07/07/2010,Learning & Development,Central Learning & Development,COI Communication,30018563,"6,499.99"
Department for Culture Media and Sport,Department for Culture Media and Sport,07/07/2010,Management Consultants,DCMS Change Team,COI Communication,30018563,"2,383.01"
Department for Culture Media and Sport,Department for Culture Media and Sport,07/07/2010,Research,EAU Taking Part Survey,Sport England,30018570,"151,198.39"
Department for Culture Media and Sport,Department for Culture Media and Sport,07/07/2010,Research,EAU Taking Part Survey,Sport England,30018571,"12,713.50"
Department for Culture Media and Sport,Department for Culture Media and Sport,07/07/2010,Oth Professional Services Prog,City of Culture-bid evaluation,Regeneris Consulting Ltd,30018600,"21,163.00"
Department for Culture Media and Sport,Department for Culture Media and Sport,07/07/2010,Grant-in-Aid (DCMS NDPBs),GIA Architecture+Heritage,Churches Conservation Trust,30018614,"800,000.00"
Department for Culture Media and Sport,Department for Culture Media and Sport,07/07/2010,Special Bonuses,Government Olympic Executive,Hitachi Consulting,30018616,"2,291.25"
Department for Culture Media and Sport,Department for Culture Media and Sport,07/07/2010,Office Accom Fuel & Utilities,Estates & Property Services,EDF Energy Ltd,30018619,"16,319.25"
Department for Culture Media and Sport,Department for Culture Media and Sport,07/07/2010,Security,Estates & Property Services,Carillion Services Ltd,30018620,"56,418.10"
Department for Culture Media and Sport,Department for Culture Media and Sport,07/07/2010,Accommodation Management Fees,Estates & Property Services,Cripps Harries Hall Solicitors,30018621,941
Department for Culture Media and Sport,Department for Culture Media and Sport,07/07/2010,Temp staff filling vacancy,Minister Sport,Brook Street ( UK ) Ltd,30018625,826.69
Department for Culture Media and Sport,Department for Culture Media and Sport,07/07/2010,Management of Grant Programmes,Listed Places of Worship,Liberata UK Ltd,30018626,"15,822.49"
Department for Culture Media and Sport,Department for Culture Media and Sport,07/07/2010,Management of Grant Programmes,Memorials VAT Grant Scheme,Liberata UK Ltd,30018627,"4,904.68"
Department for Culture Media and Sport,Department for Culture Media and Sport,07/07/2010,Current Grants to LAs,Free Swimming Programme,Halton Borough Council,30018697,"37,336.00"
Department for Culture Media and Sport,Department for Culture Media and Sport,08/07/2010,Other Telephone Charges,Information Services,Cable and Wireless Communciations,30018084,-646.25
Department for Culture Media and Sport,Department for Culture Media and Sport,08/07/2010,Grant to BBC:Home Broadcasting,Home Broadcasting:Grant to BBC,British Broadcasting Corporation,30018348,"34,993,000.00"
Department for Culture Media and Sport,Department for Culture Media and Sport,08/07/2010,Temp staff filling vacancy,Director Sport + Leisure admin,Josephine Sammons Ltd,30018585,820.44
Department for Culture Media and Sport,Department for Culture Media and Sport,08/07/2010,Current Grants Private Sector,Football Foundation,Sport Resolutions (UK),30018594,"42,280.91"
Department for Culture Media and Sport,Department for Culture Media and Sport,08/07/2010,Other Telephone Charges,Information Services,Vodafone (Corporate),30018599,"1,263.10"
Department for Culture Media and Sport,Department for Culture Media and Sport,08/07/2010,Other Telephone Charges,Information Services,Cable and Wireless Communciations,30018607,"-2,498.34"
Department for Culture Media and Sport,Department for Culture Media and Sport,08/07/2010,Serial Publications,Minister Culture,Jones Yarrell Leadenhall Ltd,30018608,108.78
Department for Culture Media and Sport,Department for Culture Media and Sport,08/07/2010,Serial Publications,Minister Sport,Jones Yarrell Leadenhall Ltd,30018608,142.79
Department for Culture Media and Sport,Department for Culture Media and Sport,08/07/2010,Serial Publications,Secretary of State,Jones Yarrell Leadenhall Ltd,30018608,156.27
Department for Culture Media and Sport,Department for Culture Media and Sport,08/07/2010,Serial Publications,Special Advisers,Jones Yarrell Leadenhall Ltd,30018608,166.25
Department for Culture Media and Sport,Department for Culture Media and Sport,08/07/2010,Serial Publications,Minister Culture,Jones Yarrell Leadenhall Ltd,30018609,102.68
Department for Culture Media and Sport,Department for Culture Media and Sport,08/07/2010,Serial Publications,Minister Sport,Jones Yarrell Leadenhall Ltd,30018609,142.4
Department for Culture Media and Sport,Department for Culture Media and Sport,08/07/2010,Serial Publications,Secretary of State,Jones Yarrell Leadenhall Ltd,30018609,138.55
Department for Culture Media and Sport,Department for Culture Media and Sport,08/07/2010,Serial Publications,Special Advisers,Jones Yarrell Leadenhall Ltd,30018609,153.3
Department for Culture Media and Sport,Department for Culture Media and Sport,08/07/2010,Government Procurement Card,Procurement,Barclays Bank plc,30018893,"13,501.69"
Department for Culture Media and Sport,Department for Culture Media and Sport,08/07/2010,Temp staff filling vacancy,Human Resources Team,Brook Street ( UK ) Ltd,30018896,538.9
Department for Culture Media and Sport,Department for Culture Media and Sport,08/07/2010,Temp staff filling vacancy,Human Resources Team,Brook Street ( UK ) Ltd,30018897,860.06
Department for Culture Media and Sport,Department for Culture Media and Sport,08/07/2010,Art Transport - UK,Govt Art Collection programme,Fine Art Services Ltd,30018898,998
Department for Culture Media and Sport,Department for Culture Media and Sport,08/07/2010,Other Telephone Charges,Information Services,Cable and Wireless Communciations,30018899,"15,807.27"
Department for Culture Media and Sport,Department for Culture Media and Sport,08/07/2010,Other Telephone Charges,Information Services,Buying Solutions,30018900,928.96
Department for Culture Media and Sport,Department for Culture Media and Sport,08/07/2010,Other Telephone Charges,Information Services,BT Payment Services Ltd,30018901,"3,427.99"
Department for Culture Media and Sport,Department for Culture Media and Sport,08/07/2010,External Course Fees,Information Services,Working Solutions,30018902,763.75
Department for Culture Media and Sport,Department for Culture Media and Sport,08/07/2010,Current Grants Private Sector,Other Sports Support(excl ISB),Arts Council of England,30018904,"95,000.00"
Department for Culture Media and Sport,Department for Culture Media and Sport,08/07/2010,Temp staff filling vacancy,Government Olympic Executive,Brook Street ( UK ) Ltd,30018906,733.28
Department for Culture Media and Sport,Department for Culture Media and Sport,08/07/2010,Temp staff filling vacancy,Government Olympic Executive,Brook Street ( UK ) Ltd,30018907,639.87
Department for Culture Media and Sport,Department for Culture Media and Sport,09/07/2010,Research,EAU Taking Part Survey,TNS UK LTD,30018603,"32,969.33"
Department for Culture Media and Sport,Department for Culture Media and Sport,09/07/2010,Current Grants Private Sector,Listed Places of Worship,Summary value of LPoW payments by Liberata,30018909,"675,772.91"
Department for Culture Media and Sport,Department for Culture Media and Sport,09/07/2010,Art Transport - UK,Govt Art Collection programme,Oxford Exhibition Services,30018912,"1,050.00"
Department for Culture Media and Sport,Department for Culture Media and Sport,09/07/2010,Art Transport - UK,Govt Art Collection programme,Martinspeed Ltd,30018913,"1,080.00"
Department for Culture Media and Sport,Department for Culture Media and Sport,09/07/2010,Temp staff filling vacancy,Govt Art Collection admin cost,Brook Street ( UK ) Ltd,30018914,539.16
Department for Culture Media and Sport,Department for Culture Media and Sport,09/07/2010,Current Grants Private Sector,GIA Architecture+Heritage,Chatham Historic Dockyard Trust,30018919,"72,000.00"
Department for Culture Media and Sport,Department for Culture Media and Sport,12/07/2010,Temp staff Interim managers,Human Resources Team,Morgan Law Recruitment Consultancy Ltd,30018622,"2,350.00"
Department for Culture Media and Sport,Department for Culture Media and Sport,12/07/2010,Temp staff Interim managers,Human Resources Team,Morgan Law Recruitment Consultancy Ltd,30018623,"2,056.25"
Department for Culture Media and Sport,Department for Culture Media and Sport,12/07/2010,Temp staff Interim managers,Human Resources Team,Morgan Law Recruitment Consultancy Ltd,30018624,"2,496.88"
Department for Culture Media and Sport,Department for Culture Media and Sport,12/07/2010,Temp staff filling vacancy,Director Sport + Leisure admin,Josephine Sammons Ltd,30018922,770.21
Department for Culture Media and Sport,Department for Culture Media and Sport,12/07/2010,Current Grants to LAs,Free Swimming Programme,North Tyneside,30018926,"89,913.00"
Department for Culture Media and Sport,Department for Culture Media and Sport,12/07/2010,Healthy Workplace,Human Resources Team,Health Management Ltd,30018928,724.83
Department for Culture Media and Sport,Department for Culture Media and Sport,12/07/2010,Works Manager Fees,State Ceremonials Prog Costs,E C Harris LLP,30018930,"14,341.76"
Department for Culture Media and Sport,Department for Culture Media and Sport,12/07/2010,Temp staff filling vacancy,Finance & Planning,Allen Lane Public Sector Recruitment,30018932,"1,468.16"
Department for Culture Media and Sport,Department for Culture Media and Sport,12/07/2010,Temp staff Interim managers,Human Resources Team,Morgan Law Recruitment Consultancy Ltd,30018933,"2,643.75"
Department for Culture Media and Sport,Department for Culture Media and Sport,12/07/2010,Publicity,Communications,Eclectic Media UK Ltd,30018934,"1,500.00"
Department for Culture Media and Sport,Department for Culture Media and Sport,13/07/2010,Grant to BBC:Home Broadcasting,Home Broadcasting:Grant to BBC,British Broadcasting Corporation,30018349,"139,900,000.00"
Department for Culture Media and Sport,Department for Culture Media and Sport,13/07/2010,Temp staff filling vacancy,Evidence&Analysis admin projs,TFPL Ltd,30018916,664.46
Department for Culture Media and Sport,Department for Culture Media and Sport,13/07/2010,Other Library subscriptions,Evidence&Analysis admin projs,Factiva Ltd,30018917,"4,472.58"
Department for Culture Media and Sport,Department for Culture Media and Sport,13/07/2010,Access to Work,Human Resources Team,First Call Car Service,30018920,759.02
Department for Culture Media and Sport,Department for Culture Media and Sport,13/07/2010,Other Library subscriptions,Evidence&Analysis admin projs,Committee of Departmental Librarians,30018925,"1,000.00"
Department for Culture Media and Sport,Department for Culture Media and Sport,13/07/2010,Official Functions,Government Olympic Executive,Sadler's Wells Limited,30018935,"2,546.25"
Department for Culture Media and Sport,Department for Culture Media and Sport,13/07/2010,Temp staff Interim managers,Government Olympic Executive,Alpine Consortium,30018936,"4,081.56"
Department for Culture Media and Sport,Department for Culture Media and Sport,13/07/2010,Other Consultancy,Government Olympic Executive,South East England Development Agency,30018948,"10,000.00"
Department for Culture Media and Sport,Department for Culture Media and Sport,16/07/2010,Grant to BBC:Home Broadcasting,Home Broadcasting:Grant to BBC,British Broadcasting Corporation,30018350,"34,993,000.00"
Department for Culture Media and Sport,Department for Culture Media and Sport,16/07/2010,IT Capital Additions,Human Resources Team,Catalytic Consulting & Training,30018592,"15,510.00"
Department for Culture Media and Sport,Department for Culture Media and Sport,16/07/2010,Other Telephone Charges,Information Services,Daisy Telecoms,30018924,928.96
Department for Culture Media and Sport,Department for Culture Media and Sport,16/07/2010,Temp staff filling vacancy,Director Programmes,Brook Street ( UK ) Ltd,30018931,555.8
Department for Culture Media and Sport,Department for Culture Media and Sport,16/07/2010,Office Accom Fuel & Utilities,Estates & Property Services,British Gas Business,30018940,"1,249.41"
Department for Culture Media and Sport,Department for Culture Media and Sport,16/07/2010,Art Transport - UK,Govt Art Collection programme,Fine Art Services Ltd,30018944,685
Department for Culture Media and Sport,Department for Culture Media and Sport,16/07/2010,Art Transport - UK,Govt Art Collection programme,Fine Art Services Ltd,30018946,618
Department for Culture Media and Sport,Department for Culture Media and Sport,16/07/2010,Grant-in-Aid (DCMS NDPBs),GIA Mus Libs Archives x-sector,Imperial War Museum,30018956,"3,087.00"
Department for Culture Media and Sport,Department for Culture Media and Sport,16/07/2010,Grant-in-Aid (DCMS NDPBs),GIA Mus Libs Archives x-sector,National Museum of Science & Industry,30018957,"35,867.00"
Department for Culture Media and Sport,Department for Culture Media and Sport,16/07/2010,Grant-in-Aid (DCMS NDPBs),GIA Mus Libs Archives x-sector,National Portrait Gallery,30018958,"13,292.00"
Department for Culture Media and Sport,Department for Culture Media and Sport,16/07/2010,Grant-in-Aid (DCMS NDPBs),GIA Mus Libs Archives x-sector,GIA-Tate Gallery,30018959,"16,488.00"
Department for Culture Media and Sport,Department for Culture Media and Sport,16/07/2010,Grant-in-Aid (DCMS NDPBs),GIA Mus Libs Archives x-sector,British Museum,30018960,"17,428.93"
Department for Culture Media and Sport,Department for Culture Media and Sport,16/07/2010,Grant-in-Aid (DCMS NDPBs),GIA Mus Libs Archives x-sector,National Gallery,30018961,"13,135.76"
Department for Culture Media and Sport,Department for Culture Media and Sport,16/07/2010,Grant-in-Aid (DCMS NDPBs),GIA Mus Libs Archives x-sector,National Maritime Museum,30018962,"30,213.24"
Department for Culture Media and Sport,Department for Culture Media and Sport,16/07/2010,Grant-in-Aid (DCMS NDPBs),GIA Mus Libs Archives x-sector,Natural History Museum,30018963,"30,285.00"
Department for Culture Media and Sport,Department for Culture Media and Sport,16/07/2010,Temp staff Interim managers,Government Olympic Executive,Alpine Consortium,30018966,"4,081.72"
Department for Culture Media and Sport,Department for Culture Media and Sport,16/07/2010,External Course Fees,Government Olympic Executive,Stanton Marris LLP,30018967,"2,750.00"
Department for Culture Media and Sport,Department for Culture Media and Sport,16/07/2010,Rail travel tickets,Procurement,Hogg Robinson ( Travel ) Limited,30018968,"1,560.85"
Department for Culture Media and Sport,Department for Culture Media and Sport,16/07/2010,Healthy Workplace,Human Resources Team,Posturite (UK) Ltd,30018970,824.55
Department for Culture Media and Sport,Department for Culture Media and Sport,16/07/2010,Healthy Workplace,Human Resources Team,Posturite (UK) Ltd,30018971,824.55
Department for Culture Media and Sport,Department for Culture Media and Sport,16/07/2010,Conservation - Oil Paintings,Govt Art Collection programme,Lydeway Conservation Ltd,30018972,"1,000.00"
Department for Culture Media and Sport,Department for Culture Media and Sport,16/07/2010,New Picture Frames,Govt Art Collection programme,Darbyshire Framemakers,30018974,"1,351.25"
Department for Culture Media and Sport,Department for Culture Media and Sport,16/07/2010,Temp staff filling vacancy,Public Engagmt + Recognition,Brook Street ( UK ) Ltd,30018975,561.36
Department for Culture Media and Sport,Department for Culture Media and Sport,16/07/2010,New Picture Frames,Govt Art Collection programme,Darbyshire Framemakers,30018976,"2,112.65"
Department for Culture Media and Sport,Department for Culture Media and Sport,16/07/2010,Other Capital Grants,Memorials VAT Grant Scheme,Summary value of MGS payments by Liberata,30018978,"12,522.24"
Department for Culture Media and Sport,Department for Culture Media and Sport,16/07/2010,Learning & Development,Central Learning & Development,Eliesha Training Ltd,30018980,"1,444.00"
Department for Culture Media and Sport,Department for Culture Media and Sport,16/07/2010,Press Associated Subscriptions,Press Office,The Press Association,30018981,"1,547.92"
Department for Culture Media and Sport,Department for Culture Media and Sport,16/07/2010,Temp staff filling vacancy,Minister Sport,Brook Street ( UK ) Ltd,30018983,808.01
Department for Culture Media and Sport,Department for Culture Media and Sport,16/07/2010,Grant-in-Aid (DCMS NDPBs),GIA Mus Libs Archives x-sector,British Library ,30018985,"23,678.00"
Department for Culture Media and Sport,Department for Culture Media and Sport,19/07/2010,DCMS Wolfson Fund Round 8,Balance Sheet,National Museum of Science & Industry,30018952,"5,667.78"
Department for Culture Media and Sport,Department for Culture Media and Sport,19/07/2010,DCMS Wolfson Fund Round 8,Balance Sheet,Manchester City Council,30018955,"8,992.24"
Department for Culture Media and Sport,Department for Culture Media and Sport,19/07/2010,Mailroom Services,Estates & Property Services,Ecovert FM Ltd,30018982,"13,140.25"
Department for Culture Media and Sport,Department for Culture Media and Sport,19/07/2010,Grant-in-Aid (DCMS NDPBs),GIA Mus Libs Archives x-sector,National Museums Liverpool,30018986,"36,397.00"
Department for Culture Media and Sport,Department for Culture Media and Sport,19/07/2010,National Cutting Service,Director Media admin costs,Precise (EDS),30018987,24.28
Department for Culture Media and Sport,Department for Culture Media and Sport,19/07/2010,National Cutting Service,Director Sport + Leisure admin,Precise (EDS),30018987,24.28
Department for Culture Media and Sport,Department for Culture Media and Sport,19/07/2010,Publicity,Government Olympic Executive,Precise (EDS),30018987,101.43
Department for Culture Media and Sport,Department for Culture Media and Sport,19/07/2010,National Cutting Service,Press Office,Precise (EDS),30018987,"3,411.72"
Department for Culture Media and Sport,Department for Culture Media and Sport,19/07/2010,Transcripts,Press Office,COI Communication,30018988,"1,747.81"
Department for Culture Media and Sport,Department for Culture Media and Sport,19/07/2010,Temp staff Interim managers,Government Olympic Executive,Russam GMS LTD,30018998,"10,134.38"
Department for Culture Media and Sport,Department for Culture Media and Sport,19/07/2010,Temp staff Interim managers,Government Olympic Executive,Russam GMS LTD,30018999,"10,134.38"
Department for Culture Media and Sport,Department for Culture Media and Sport,19/07/2010,Temp staff Interim managers,Government Olympic Executive,Russam GMS LTD,30019000,"9,120.94"
Department for Culture Media and Sport,Department for Culture Media and Sport,19/07/2010,Temp staff Interim managers,Government Olympic Executive,Russam GMS LTD,30019001,"9,120.94"
Department for Culture Media and Sport,Department for Culture Media and Sport,19/07/2010,Office Accom Fuel & Utilities,Estates & Property Services,EDF Customer Field Services,30019009,916.5
Department for Culture Media and Sport,Department for Culture Media and Sport,19/07/2010,Access to Work,Human Resources Team,Speak-IT Ltd,30019011,616.88
Department for Culture Media and Sport,Department for Culture Media and Sport,20/07/2010,Learning & Development,Central Learning & Development,National School of Government,30018993,"1,180.00"
Department for Culture Media and Sport,Department for Culture Media and Sport,20/07/2010,Local Photocopiers,Estates & Property Services,Canon (UK) Ltd,30019022,"2,439.91"
Department for Culture Media and Sport,Department for Culture Media and Sport,21/07/2010,Learning & Development,Central Learning & Development,Thresholds Ltd,30018996,"1,900.00"
Department for Culture Media and Sport,Department for Culture Media and Sport,21/07/2010,Health & Safety,Estates & Property Services,SGS United Kingdom Ltd,30019021,"1,598.00"
Department for Culture Media and Sport,Department for Culture Media and Sport,21/07/2010,Access to Work,Human Resources Team,Advance Seating Designs,30019036,550.93
Department for Culture Media and Sport,Department for Culture Media and Sport,21/07/2010,Temp staff Interim managers,Government Olympic Executive,Alpine Consortium,30019037,"18,923.72"
Department for Culture Media and Sport,Department for Culture Media and Sport,21/07/2010,Temp staff filling vacancy,Government Olympic Executive,Brook Street ( UK ) Ltd,30019038,523.11
Department for Culture Media and Sport,Department for Culture Media and Sport,21/07/2010,Temp staff filling vacancy,Finance & Planning,Allen Lane Public Sector Recruitment,30019041,"1,862.96"
Department for Culture Media and Sport,Department for Culture Media and Sport,21/07/2010,Printing,Government Olympic Executive,Red Stone Design Ltd,30019043,"3,280.60"
Department for Culture Media and Sport,Department for Culture Media and Sport,21/07/2010,Temp staff Interim managers,Government Olympic Executive,LA International,30019047,"15,667.99"
Department for Culture Media and Sport,Department for Culture Media and Sport,21/07/2010,Conference Management Costs,Government Olympic Executive,London Higher,30019048,"5,000.00"
Department for Culture Media and Sport,Department for Culture Media and Sport,21/07/2010,Waste Management,Estates & Property Services,Ecovert FM Ltd,30019050,"12,565.06"
Department for Culture Media and Sport,Department for Culture Media and Sport,21/07/2010,Temp staff filling vacancy,Government Olympic Executive,Brook Street ( UK ) Ltd,30019052,714.6
Department for Culture Media and Sport,Department for Culture Media and Sport,21/07/2010,Temp staff filling vacancy,Human Resources Team,Brook Street ( UK ) Ltd,30019053,734.75
Department for Culture Media and Sport,Department for Culture Media and Sport,22/07/2010,Grant to BBC:Home Broadcasting,Home Broadcasting:Grant to BBC,British Broadcasting Corporation,30018351,"34,994,000.00"
Department for Culture Media and Sport,Department for Culture Media and Sport,22/07/2010,IT Support,Information Services,CESG,30018994,"5,405.00"
Department for Culture Media and Sport,Department for Culture Media and Sport,22/07/2010,IT Consumables,Information Services,RNID,30018995,544.74
Department for Culture Media and Sport,Department for Culture Media and Sport,22/07/2010,Other Telephone Charges,Information Services,Verizon UK Ltd,30019006,762.58
Department for Culture Media and Sport,Department for Culture Media and Sport,22/07/2010,Temp staff filling vacancy,Govt Art Collection admin cost,Brook Street ( UK ) Ltd,30019026,753.79
Department for Culture Media and Sport,Department for Culture Media and Sport,22/07/2010,New Picture Frames,Govt Art Collection programme,Fletcher Gallery Services,30019028,"2,358.77"
Department for Culture Media and Sport,Department for Culture Media and Sport,22/07/2010,Temp staff filling vacancy,Director Programmes,Brook Street ( UK ) Ltd,30019032,756.64
Department for Culture Media and Sport,Department for Culture Media and Sport,22/07/2010,Conservation - Picture Frames,Govt Art Collection programme,Alexander G Ley & Son,30019042,730
Department for Culture Media and Sport,Department for Culture Media and Sport,22/07/2010,Grant-in-Aid (DCMS NDPBs),The Royal Parks - funding,The Royal Parks Agency,30019057,"2,000,000.00"
Department for Culture Media and Sport,Department for Culture Media and Sport,22/07/2010,Grant-in-Aid (DCMS NDPBs),GIA Mus Libs Archives x-sector,Victoria & Albert Museum,30019061,"32,346.32"
Department for Culture Media and Sport,Department for Culture Media and Sport,22/07/2010,Payroll (Logica),Human Resources Team,Logica CMG Enterprise Services,30019068,"2,940.09"
Department for Culture Media and Sport,Department for Culture Media and Sport,22/07/2010,Apprenticeships,Human Resources Team,London Apprenticeship Company,30019070,373.61
Department for Culture Media and Sport,Department for Culture Media and Sport,22/07/2010,Apprenticeships,Public Engagmt + Recognition,London Apprenticeship Company,30019070,"1,334.90"
Department for Culture Media and Sport,Department for Culture Media and Sport,22/07/2010,Conservation - Oil Paintings,Govt Art Collection programme,Mrs Carol Willoughby,30019079,"1,850.00"
Department for Culture Media and Sport,Department for Culture Media and Sport,22/07/2010,Government Car Service,Secretary of State,GCDA (Citi Tr),30019082,758.09
Department for Culture Media and Sport,Department for Culture Media and Sport,23/07/2010,IT Maintenance,Information Services,Atos Origin IT Services UK Ltd,30019002,"13,761.81"
Department for Culture Media and Sport,Department for Culture Media and Sport,23/07/2010,IT Capital Additions,Information Services,Atos Origin IT Services UK Ltd,30019003,"12,376.98"
Department for Culture Media and Sport,Department for Culture Media and Sport,23/07/2010,IT Capital Additions,Information Services,Atos Origin IT Services UK Ltd,30019004,"4,125.66"
Department for Culture Media and Sport,Department for Culture Media and Sport,23/07/2010,IT Capital Additions,Information Services,Atos Origin IT Services UK Ltd,30019005,"23,451.12"
Department for Culture Media and Sport,Department for Culture Media and Sport,23/07/2010,Other Consultancy,Director Programmes,OGC Accounting Services,30019033,"6,979.50"
Department for Culture Media and Sport,Department for Culture Media and Sport,23/07/2010,Other Telephone Charges,Information Services,Daisy Telecoms,30019059,930.22
Department for Culture Media and Sport,Department for Culture Media and Sport,23/07/2010,Temp staff filling vacancy,Public Engagmt + Recognition,Brook Street ( UK ) Ltd,30019078,568.84
Department for Culture Media and Sport,Department for Culture Media and Sport,23/07/2010,Oth Professional Services Prog,Arts Support in Culture Team,The Treasurer to the Queen,30019081,"1,505.28"
Department for Culture Media and Sport,Department for Culture Media and Sport,23/07/2010,Current Grants Private Sector,Listed Places of Worship,Summary value of LPoW payments by Liberata,30019087,"517,787.50"
Department for Culture Media and Sport,Department for Culture Media and Sport,23/07/2010,Grant-in-Aid (DCMS NDPBs),GIA Mus Libs Archives x-sector,Wallace Collection,30019089,"23,482.00"
Department for Culture Media and Sport,Department for Culture Media and Sport,23/07/2010,Temp staff filling vacancy,Director Programmes,Brook Street ( UK ) Ltd,30019097,709.94
Department for Culture Media and Sport,Department for Culture Media and Sport,23/07/2010,Learning & Development,Central Learning & Development,Teleios Consulting South East Ltd,30019099,527.1
Department for Culture Media and Sport,Department for Culture Media and Sport,23/07/2010,Learning & Development,Central Learning & Development,Teleios Consulting South East Ltd,30019100,"1,034.20"
Department for Culture Media and Sport,Department for Culture Media and Sport,26/07/2010,Publicity,Communications,Eclectic Media UK Ltd,30019065,"1,500.00"
Department for Culture Media and Sport,Department for Culture Media and Sport,26/07/2010,Temp staff filling vacancy,Government Olympic Executive,Hays Office Support,30019109,854.08
Department for Culture Media and Sport,Department for Culture Media and Sport,26/07/2010,Temp staff filling vacancy,Government Olympic Executive,Hays Office Support,30019110,798.62
Department for Culture Media and Sport,Department for Culture Media and Sport,26/07/2010,Temp staff filling vacancy,Government Olympic Executive,Hays Office Support,30019111,820.81
Department for Culture Media and Sport,Department for Culture Media and Sport,26/07/2010,Local Photocopiers,Estates & Property Services,Canon (UK) Ltd,30019112,571.87
Department for Culture Media and Sport,Department for Culture Media and Sport,26/07/2010,Corporate Subs (Trade/Profess),Estates & Property Services,Spikes Cavell & Co,30019115,"4,078.77"
Department for Culture Media and Sport,Department for Culture Media and Sport,26/07/2010,Temp staff filling vacancy,Finance & Planning,Allen Lane Public Sector Recruitment,30019120,"1,443.49"
Department for Culture Media and Sport,Department for Culture Media and Sport,26/07/2010,Temp staff filling vacancy,Government Olympic Executive,Brook Street ( UK ) Ltd,30019124,536.26
Department for Culture Media and Sport,Department for Culture Media and Sport,26/07/2010,Management Consultants,Government Olympic Executive,ROI Solutions Limited,30019125,"14,250.00"
Department for Culture Media and Sport,Department for Culture Media and Sport,26/07/2010,Temp staff Interim managers,Government Olympic Executive,AMTEC Consulting Group,30019126,"15,435.66"
Department for Culture Media and Sport,Department for Culture Media and Sport,27/07/2010,IT Maintenance,Information Services,Atos Origin IT Services UK Ltd,30019023,"180,503.04"
Department for Culture Media and Sport,Department for Culture Media and Sport,27/07/2010,Temp staff filling vacancy,Director Sport + Leisure admin,Josephine Sammons Ltd,30019046,826.03
Department for Culture Media and Sport,Department for Culture Media and Sport,27/07/2010,Publicity,Communications,Richard Mitchell,30019063,"1,155.10"
Department for Culture Media and Sport,Department for Culture Media and Sport,27/07/2010,Art Transport - UK,Govt Art Collection programme,Fine Art Services Ltd,30019116,650
Department for Culture Media and Sport,Department for Culture Media and Sport,27/07/2010,Temp staff filling vacancy,Director Sport + Leisure admin,Josephine Sammons Ltd,30019128,853.93
Department for Culture Media and Sport,Department for Culture Media and Sport,27/07/2010,Publicity,Communications,CAKE Consultancy Ltd,30019141,940
Department for Culture Media and Sport,Department for Culture Media and Sport,27/07/2010,Publicity,Communications,Eclectic Media UK Ltd,30019145,"1,762.50"
Department for Culture Media and Sport,Department for Culture Media and Sport,27/07/2010,Temp staff filling vacancy,Minister Sport,Brook Street ( UK ) Ltd,30019146,770.65
Department for Culture Media and Sport,Department for Culture Media and Sport,27/07/2010,Temp staff filling vacancy,Govt Art Collection admin cost,Brook Street ( UK ) Ltd,30019148,753.79
Department for Culture Media and Sport,Department for Culture Media and Sport,27/07/2010,Conservation - Picture Frames,Govt Art Collection programme,Alexander G Ley & Son,30019149,450
Department for Culture Media and Sport,Department for Culture Media and Sport,27/07/2010,Conservation - Oil Paintings,Govt Art Collection programme,Mrs Carol Willoughby,30019151,600
Department for Culture Media and Sport,Department for Culture Media and Sport,28/07/2010,National Non-Domestic Rates,Estates & Property Services,Westminster City Council,30018964,"144,761.00"
Department for Culture Media and Sport,Department for Culture Media and Sport,28/07/2010,National Non-Domestic Rates,Estates & Property Services,London Borough of Camden,30018965,"24,070.00"
Department for Culture Media and Sport,Department for Culture Media and Sport,28/07/2010,IT Capital Additions,Human Resources Team,Skillsearch Ltd,30019039,"2,115.00"
Department for Culture Media and Sport,Department for Culture Media and Sport,28/07/2010,Research,CASE Joint Research Projects,Jane Dawson Limited,30019044,"3,200.00"
Department for Culture Media and Sport,Department for Culture Media and Sport,28/07/2010,Current Grants Private Sector,GIA Museums & Galleries,Museum of Science & Ind in Manchester,30019049,"172,700.00"
Department for Culture Media and Sport,Department for Culture Media and Sport,28/07/2010,Publicity,Communications,Evolve Design (London) Ltd,30019064,"5,125.00"
Department for Culture Media and Sport,Department for Culture Media and Sport,28/07/2010,Publicity,Communications,CAKE Consultancy Ltd,30019066,800
Department for Culture Media and Sport,Department for Culture Media and Sport,28/07/2010,Healthy Workplace,Human Resources Team,Workplace Options,30019092,929.48
Department for Culture Media and Sport,Department for Culture Media and Sport,28/07/2010,Temp staff filling vacancy,Evidence&Analysis admin projs,TFPL Ltd,30019096,664.46
Department for Culture Media and Sport,Department for Culture Media and Sport,28/07/2010,Temp staff Interim managers,Human Resources Team,Morgan Law Recruitment Consultancy Ltd,30019119,"2,643.75"
Department for Culture Media and Sport,Department for Culture Media and Sport,28/07/2010,Healthy Workplace,Human Resources Team,Central YMCA,30019122,978.78
Department for Culture Media and Sport,Department for Culture Media and Sport,28/07/2010,Healthy Workplace,Human Resources Team,Central YMCA,30019123,"1,019.90"
Department for Culture Media and Sport,Department for Culture Media and Sport,28/07/2010,IT Capital Additions,Human Resources Team,Skillsearch Ltd,30019139,"4,700.00"
Department for Culture Media and Sport,Department for Culture Media and Sport,28/07/2010,IT Capital Additions,Human Resources Team,Logica CMG Enterprise Services,30019144,"1,365.35"
Department for Culture Media and Sport,Department for Culture Media and Sport,28/07/2010,Temp staff filling vacancy,Human Resources Team,Brook Street ( UK ) Ltd,30019153,774.63
Department for Culture Media and Sport,Department for Culture Media and Sport,28/07/2010,Temp staff filling vacancy,Human Resources Team,Brook Street ( UK ) Ltd,30019154,538.9
Department for Culture Media and Sport,Department for Culture Media and Sport,28/07/2010,Oth Professional Services Prog,Digital Switchover Programme,Alan Fellows Associates,30019158,783.14
Department for Culture Media and Sport,Department for Culture Media and Sport,28/07/2010,Temp staff Interim managers,Government Olympic Executive,LA International,30019160,"23,097.27"
Department for Culture Media and Sport,Department for Culture Media and Sport,28/07/2010,Temp staff filling vacancy,Government Olympic Executive,Brook Street ( UK ) Ltd,30019163,700.59
Department for Culture Media and Sport,Department for Culture Media and Sport,28/07/2010,Capital Grant Private Sector,Grant support to NFTS,National Film & Television School,30019165,"261,833.00"
Department for Culture Media and Sport,Department for Culture Media and Sport,29/07/2010,Temp staff Interim managers,Human Resources Team,Morgan Law Recruitment Consultancy Ltd,30019060,"2,643.75"
Department for Culture Media and Sport,Department for Culture Media and Sport,29/07/2010,Research,EAU Policy Research + Eval,Frontier Economics Ltd,30019072,"11,556.30"
Department for Culture Media and Sport,Department for Culture Media and Sport,29/07/2010,Publicity,Communications,CAKE Consultancy Ltd,30019090,600
Department for Culture Media and Sport,Department for Culture Media and Sport,29/07/2010,Publicity,Communications,CAKE Consultancy Ltd,30019091,600
Department for Culture Media and Sport,Department for Culture Media and Sport,29/07/2010,Current Grants Private Sector,Youth Music Programmes,Media Trust,30019094,"87,171.00"
Department for Culture Media and Sport,Department for Culture Media and Sport,29/07/2010,Current Grants Private Sector,Youth Music Programmes,Media Trust,30019095,"74,771.00"
Department for Culture Media and Sport,Department for Culture Media and Sport,29/07/2010,Temp staff filling vacancy,Government Olympic Executive,Brook Street ( UK ) Ltd,30019167,877.51
Department for Culture Media and Sport,Department for Culture Media and Sport,29/07/2010,Art Transport - UK,Govt Art Collection programme,Oxford Exhibition Services,30019169,"1,050.00"
Department for Culture Media and Sport,Department for Culture Media and Sport,29/07/2010,Oth Professional Services Prog,IFNC Consortia Pilot Work,Networkers Recruitment Services Ltd,30019171,"4,303.44"
Department for Culture Media and Sport,Department for Culture Media and Sport,29/07/2010,Temp staff filling vacancy,Evidence&Analysis admin projs,TFPL Ltd,30019172,724.27
Department for Culture Media and Sport,Department for Culture Media and Sport,29/07/2010,Temp staff Interim managers,Government Olympic Executive,Russam GMS LTD,30019174,"10,134.38"
Department for Culture Media and Sport,Department for Culture Media and Sport,29/07/2010,Temp staff Interim managers,Government Olympic Executive,Russam GMS LTD,30019175,"5,067.19"
Department for Culture Media and Sport,Department for Culture Media and Sport,29/07/2010,Temp staff Interim managers,Government Olympic Executive,Russam GMS LTD,30019176,"5,067.19"
Department for Culture Media and Sport,Department for Culture Media and Sport,29/07/2010,Temp staff Interim managers,Government Olympic Executive,Russam GMS LTD,30019177,"5,067.19"
Department for Culture Media and Sport,Department for Culture Media and Sport,29/07/2010,Temp staff filling vacancy,Government Olympic Executive,Brook Street ( UK ) Ltd,30019178,653.89
Department for Culture Media and Sport,Department for Culture Media and Sport,29/07/2010,Conservation - Oil Paintings,Govt Art Collection programme,Simon Folkes,30019179,"3,700.00"
Department for Culture Media and Sport,Department for Culture Media and Sport,29/07/2010,Temp staff filling vacancy,Govt Art Collection admin cost,Brook Street ( UK ) Ltd,30019180,753.79
Department for Culture Media and Sport,Department for Culture Media and Sport,29/07/2010,Management Consultants,Dir Culture team + projects,Watts Group PLC,30019181,"1,375.73"
Department for Culture Media and Sport,Department for Culture Media and Sport,29/07/2010,Other Consultancy,Government Olympic Executive,Welsh Assembley Government (4916),30019188,"10,000.00"
Department for Culture Media and Sport,Department for Culture Media and Sport,30/07/2010,Research,Digital Switchover Programme,eaga plc Switchover Help Scheme,30019034,"129,905.86"
Department for Culture Media and Sport,Department for Culture Media and Sport,30/07/2010,Research,EAU Policy Research + Eval,Frontier Economics Ltd,30019073,"24,000.00"
Department for Culture Media and Sport,Department for Culture Media and Sport,30/07/2010,Grant-in-Aid (Current),OFCOM,OFCOM ,30019162,"208,634.00"
Department for Culture Media and Sport,Department for Culture Media and Sport,30/07/2010,Rail travel tickets,Procurement,Hogg Robinson ( Travel ) Limited,30019168,"2,070.50"
Department for Culture Media and Sport,Department for Culture Media and Sport,30/07/2010,Management Consultants,Government Olympic Executive,Blue Rubicon Ltd,30019212,"18,019.00"
1,,,,,,,
